fUST/lending_fUST_20240117
["ID","MTS","AMOUNT","RATE_DAILY","PERIOD"]
[311853267,1705473039179,-1029.01,0.00021917,2]
[311853268,1705473039188,-601.97581751,0.00021917,2]
[311853269,1705473039197,-580.42,0.00021917,2]
[311853270,1705473039207,-500.0,0.00021917,2]
[311853271,1705473039216,-224.4532379,0.00021917,2]
[311853272,1705473039226,-500.0,0.00021917,2]
[311853273,1705473039236,-500.0,0.00021917,2]
[311853274,1705473039246,-529.35214172,0.00021917,2]
[311853275,1705473039255,-500.0,0.00021917,2]
[311853276,1705473039264,-500.0,0.00021917,2]
[311853277,1705473039276,-500.0,0.00021917,2]
[311853278,1705473039287,-500.0,0.00021917,2]
[311853279,1705473039296,-1000.0,0.00021917,2]
[311853280,1705473039305,-502.48270235,0.00021917,2]
[311853281,1705473039316,-500.0,0.00021917,2]
[311853282,1705473039326,-500.0,0.00021917,2]
[311853283,1705473039335,-506.58497836,0.00021917,2]
[311853284,1705473039345,-500.0,0.00021917,2]
[311853285,1705473039355,-500.0,0.00021917,2]
[311853286,1705473039365,-500.0,0.00021917,2]
[311853287,1705473039374,-1653.14,0.00021917,2]
[311853288,1705473039383,-500.0,0.00021917,2]
[311853289,1705473039393,-500.0,0.00021917,2]
[311853290,1705473039402,-500.0,0.00021917,2]
[311853291,1705473039411,-505.95267522,0.00021917,2]
[311853292,1705473039420,-500.0,0.00021917,2]
[311853293,1705473039429,-500.0,0.00021917,2]
[311853294,1705473039438,-500.0,0.00021917,2]
[311853295,1705473039447,-500.0,0.00021917,2]
[311853296,1705473039457,-500.0,0.00021917,2]
[311853297,1705473039466,-500.0,0.00021917,2]
[311853298,1705473039475,-500.0,0.00021917,2]
[311853299,1705473039484,-452.21175221,0.00021917,2]
[311853300,1705473039493,-314.44072528,0.00021917,2]
[311853301,1705473039503,-500.0,0.00021917,2]
[311853302,1705473039512,-500.0,0.00021917,2]
[311853303,1705473039528,-261.31076788,0.00021917,2]
[311853304,1705473039543,-420.10258733,0.00021917,2]
[311853305,1705473039553,-865.7,0.00021917,2]
[311853306,1705473039564,-997.65,0.00021917,2]
[311853307,1705473039574,-500.0,0.00021917,2]
[311853308,1705473039584,-500.0,0.00021917,2]
[311853309,1705473039593,-500.0,0.00021917,2]
[311853310,1705473039603,-500.0,0.00021917,2]
[311853311,1705473039613,-500.0,0.00021917,2]
[311853312,1705473039623,-500.0,0.00021917,2]
[311853313,1705473039632,-500.0,0.00021917,2]
[311853314,1705473039642,-500.0,0.00021917,2]
[311853315,1705473039651,-500.0,0.00021917,2]
[311853316,1705473039661,-500.0,0.00021917,2]
[311853317,1705473039671,-1942.51,0.00021917,2]
[311853318,1705473039681,-500.18169587,0.00021917,2]
[311853319,1705473039690,-474.31978255,0.00021917,2]
[311853320,1705473039701,-500.0,0.00021917,2]
[311853321,1705473039711,-501.47332198,0.00021917,2]
[311853322,1705473039721,-532.97085441,0.00021917,2]
[311853323,1705473039731,-500.0,0.00021917,2]
[311853324,1705473039741,-500.0,0.00021917,2]
[311853325,1705473039751,-647.08,0.00021917,2]
[311853326,1705473039761,-500.0,0.00021917,2]
[311853327,1705473039771,-500.0,0.00021917,2]
[311853328,1705473039781,-500.0,0.00021917,2]
[311853329,1705473039791,-1371.58,0.00021917,2]
[311853330,1705473039800,-500.0,0.00021917,2]
[311853331,1705473039810,-732.62,0.00021917,2]
[311853332,1705473039820,-706.63,0.00021917,2]
[311853333,1705473039830,-501.21701358,0.00021917,2]
[311853334,1705473039839,-615.77,0.00021917,2]
[311853335,1705473039849,-1111.59,0.00021917,2]
[311853336,1705473039859,-496.38117138,0.00021917,2]
[311853337,1705473039868,-500.0,0.00021917,2]
[311853338,1705473039878,-500.0,0.00021917,2]
[311853339,1705473039887,-500.0,0.00021917,2]
[311853340,1705473039897,-500.0,0.00021917,2]
[311853342,1705473039907,-503.79040743,0.00021917,2]
[311853344,1705473039916,-563.69,0.00021917,2]
[311853345,1705473039926,-500.0,0.00021917,2]
[311853346,1705473039936,-500.0,0.00021917,2]
[311853347,1705473039946,-500.0,0.00021917,2]
[311853348,1705473039956,-502.52359006,0.00021917,2]
[311853349,1705473039966,-500.0,0.00021917,2]
[311853350,1705473039976,-500.0,0.00021917,2]
[311853351,1705473039986,-429.64655054,0.00021917,2]
[311853353,1705473039995,-500.0,0.00021917,2]
[311853354,1705473040005,-500.0,0.00021917,2]
[311853356,1705473040015,-500.0,0.00021917,2]
[311853358,1705473040025,-500.0,0.00021917,2]
[311853360,1705473040035,-500.0,0.00021917,2]
[311853362,1705473040044,-500.0,0.00021917,2]
[311853364,1705473040054,-500.0,0.00021917,2]
[311853366,1705473040064,-500.0,0.00021917,2]
[311853368,1705473040075,-1578.53,0.00021917,2]
[311853370,1705473040084,-502.91683953,0.00021917,2]
[311853372,1705473040095,-501.70956628,0.00021917,2]
[311853374,1705473040104,-500.0,0.00021917,2]
[311853376,1705473040114,-500.0,0.00021917,2]
[311853378,1705473040123,-500.0,0.00021917,2]
[311853380,1705473040134,-500.0,0.00021917,2]
[311853382,1705473040143,-500.0,0.00021917,2]
[311853384,1705473040153,-500.0,0.00021917,2]
[311853387,1705473040163,-500.0,0.00021917,2]
[311853389,1705473040172,-500.0,0.00021917,2]
[311853391,1705473040182,-500.0,0.00021917,2]
[311853393,1705473040191,-500.0,0.00021917,2]
[311853395,1705473040201,-500.0,0.00021917,2]
[311853397,1705473040210,-500.0,0.00021917,2]
[311853399,1705473040220,-500.29488324,0.00021917,2]
[311853401,1705473040230,-500.0,0.00021917,2]
[311853403,1705473040239,-635.41544431,0.00021917,2]
[311853405,1705473040248,-500.0,0.00021917,2]
[311853407,1705473040257,-332.27608059,0.00021917,2]
[311853409,1705473040267,-500.0,0.00021917,2]
[311853411,1705473040283,-500.0,0.00021917,2]
[311853413,1705473040292,-500.0,0.00021917,2]
[311853414,1705473040302,-678.77,0.00021917,2]
[311853416,1705473040311,-500.0,0.00021917,2]
[311853419,1705473040322,-500.0,0.00021917,2]
[311853421,1705473040332,-500.0,0.00021917,2]
[311853423,1705473040342,-3458.05,0.00021917,2]
[311853425,1705473040353,-500.0,0.00021917,2]
[311853427,1705473040362,-3263.44,0.00021917,2]
[311853429,1705473040372,-1850.79,0.00021917,2]
[311853431,1705473040381,-500.0,0.00021917,2]
[311853433,1705473040391,-500.0,0.00021917,2]
[311853435,1705473040400,-500.0,0.00021917,2]
[311853437,1705473040409,-524.79,0.00021917,2]
[311853439,1705473040418,-500.0,0.00021917,2]
[311853441,1705473040428,-500.0,0.00021917,2]
[311853443,1705473040437,-500.0,0.00021917,2]
[311853445,1705473040447,-501.27,0.00021917,2]
[311853455,1705473040532,-4580.02,0.00021917,2]
[311853457,1705473040543,-500.0,0.00021917,2]
[311853459,1705473040553,-500.0,0.00021917,2]
[311853460,1705473040562,-500.0,0.00021917,2]
[311853461,1705473040571,-921.94,0.00021917,2]
[311853462,1705473040580,-198.79879071,0.00021917,2]
[311853463,1705473040589,-18556.37,0.00021917,2]
[311853464,1705473040599,-500.0,0.00021917,2]
[311853465,1705473040608,-500.0,0.00021917,2]
[311853466,1705473040618,-500.0,0.00021917,2]
[311853467,1705473040628,-980.64,0.00021917,2]
[311853468,1705473040638,-1151.16,0.00021917,2]
[311853469,1705473040647,-500.0,0.00021917,2]
[311853470,1705473040656,-10118.6,0.00021917,2]
[311853471,1705473040666,-500.0,0.00021917,2]
[311853472,1705473040675,-254.97616014,0.00021917,2]
[311853473,1705473040684,-2440.75,0.00021917,2]
[311853474,1705473040693,-500.0,0.00021917,2]
[311853475,1705473040703,-500.0,0.00021917,2]
[311853476,1705473040712,-500.0,0.00021917,2]
[311853477,1705473040721,-500.0,0.00021917,2]
[311853478,1705473040731,-500.0,0.00021917,2]
[311853479,1705473040740,-500.0,0.00021917,2]
[311853480,1705473040749,-500.0,0.00021917,2]
[311853481,1705473040759,-3959.88,0.00021917,2]
[311853482,1705473040769,-500.0,0.00021917,2]
[311853483,1705473040778,-1454.61,0.00021917,2]
[311853484,1705473040787,-500.0,0.00021917,2]
[311853485,1705473040796,-500.0,0.00021917,2]
[311853486,1705473040805,-500.0,0.00021917,2]
[311853487,1705473040814,-1647.0,0.00021917,2]
[311853488,1705473040823,-500.0,0.00021917,2]
[311853489,1705473040832,-500.0,0.00021917,2]
[311853490,1705473040841,-500.0,0.00021917,2]
[311853491,1705473040850,-1041.43,0.00021917,2]
[311853492,1705473040859,-3434.65,0.00021917,2]
[311853494,1705473040868,-2052.68,0.00021917,2]
[311853495,1705473040877,-202.33336312,0.00021917,2]
[311853496,1705473040886,-500.0,0.00021917,2]
[311853497,1705473040895,-4657.39,0.00021917,2]
[311853498,1705473040905,-500.0,0.00021917,5]
[311853499,1705473040914,-500.0,0.00021917,2]
[311853500,1705473040923,-1123.51,0.00021917,2]
[311853501,1705473040932,-500.0,0.00021917,2]
[311853502,1705473040942,-500.0,0.00021917,2]
[311853503,1705473040950,-917.15,0.00021917,2]
[311853504,1705473040960,-500.0,0.00021917,2]
[311853505,1705473040969,-500.0,0.00021917,2]
[311853506,1705473040978,-500.0,0.00021917,2]
[311853507,1705473040987,-500.0,0.00021917,2]
[311853508,1705473040996,-502.1951578,0.00021917,2]
[311853509,1705473041007,-502.16920952,0.00021917,2]
[311853510,1705473041016,-578.07,0.00021917,2]
[311853511,1705473041025,-500.0,0.00021917,2]
[311853512,1705473041036,-500.0,0.00021917,2]
[311853513,1705473041045,-648.76341186,0.00021917,2]
[311853514,1705473041054,-1676.44,0.00021917,2]
[311853515,1705473041063,-619.47,0.00021917,2]
[311853516,1705473041073,-698.49,0.00021917,2]
[311853517,1705473041082,-500.0,0.00021917,2]
[311853518,1705473041091,-2072.28,0.00021917,2]
[311853519,1705473041102,-500.79749771,0.00021917,2]
[311853520,1705473041111,-592.38,0.00021917,2]
[311853521,1705473041121,-2266.9,0.00021917,2]
[311853522,1705473041130,-500.0,0.00021917,2]
[311853523,1705473041140,-500.0,0.00021917,2]
[311853524,1705473041149,-9177.6,0.00021917,2]
[311853525,1705473041159,-500.0,0.00021917,2]
[311853526,1705473041168,-500.0,0.00021917,2]
[311853527,1705473041178,-1254.05,0.00021917,2]
[311853528,1705473041187,-500.0,0.00021917,2]
[311853529,1705473041196,-11512.07,0.00021917,2]
[311853530,1705473041206,-509.67732269,0.00021917,2]
[311853531,1705473041215,-20281.26,0.00021917,2]
[311853532,1705473041225,-500.0,0.00021917,2]
[311853533,1705473041234,-500.0,0.00021917,2]
[311853534,1705473041243,-500.0,0.00021917,2]
[311853535,1705473041253,-500.0,0.00021917,2]
[311853536,1705473041263,-166.666666,0.00021918,2]
[311853537,1705473041275,-4018.79706982,0.00022,2]
[311853538,1705473041285,-425.53656097,0.00022,2]
[311853539,1705473041295,-157.08440165,0.00022,2]
[311853540,1705473041304,-330.6015298,0.00022054,2]
[311853541,1705473041315,-503.33303702,0.00022054,2]
[311853542,1705473041324,-500.0,0.00022054,2]
[311853543,1705473041334,-500.0,0.00022054,2]
[311853544,1705473041343,-500.0,0.00022054,2]
[311853545,1705473041353,-500.0,0.00022054,2]
[311853546,1705473041365,-500.0,0.00022054,2]
[311853547,1705473041374,-500.0,0.00022054,2]
[311853548,1705473041383,-500.0,0.00022054,2]
[311853549,1705473041393,-561.06752214,0.00022054,2]
[311853550,1705473041403,-500.0,0.00022054,2]
[311853551,1705473041412,-371.92828207,0.00022054,2]
[311853552,1705473041421,-500.0,0.00022054,2]
[311853553,1705473041431,-596.62,0.00022054,2]
[311853554,1705473041440,-500.0,0.00022054,2]
[311853555,1705473041450,-500.0,0.00022054,2]
[311853556,1705473041460,-2062.11,0.00022054,2]
[311853557,1705473041469,-500.0,0.00022054,2]
[311853558,1705473041480,-500.0,0.00022054,2]
[311853559,1705473041490,-169.28365267,0.00022054,2]
[311853560,1705473041499,-624.52,0.00022054,2]
[311853561,1705473041508,-500.0,0.00022054,2]
[311853562,1705473041517,-500.0,0.00022054,2]
[311853563,1705473041526,-500.0,0.00022054,2]
[311853564,1705473041536,-500.0,0.00022054,2]
[311853565,1705473041545,-500.0,0.00022054,2]
[311853566,1705473041554,-500.0,0.00022054,2]
[311853567,1705473041564,-500.0,0.00022054,2]
[311853568,1705473041573,-363.32405101,0.00022054,2]
[311853569,1705473041583,-500.0,0.00022054,2]
[311853570,1705473041593,-500.0,0.00022054,2]
[311853571,1705473041602,-508.74722001,0.00022054,2]
[311853572,1705473041612,-500.0,0.00022054,2]
[311853573,1705473041622,-500.0,0.00022054,2]
[311853574,1705473041631,-500.0,0.00022054,2]
[311853575,1705473041640,-504.9685374,0.00022054,2]
[311853576,1705473041650,-500.0,0.00022054,2]
[311853577,1705473041659,-416.01915316,0.00022054,2]
[311853578,1705473041669,-500.0,0.00022054,2]
[311853579,1705473041678,-524.15290161,0.00022054,2]
[311853580,1705473041687,-501.49306401,0.00022054,2]
[311853581,1705473041754,-284.73494924,0.00022054,2]
[311853582,1705473041770,-500.0,0.00022054,2]
[311853583,1705473041780,-500.0,0.00022054,2]
[311853584,1705473041789,-311.47511361,0.00022054,2]
[311853585,1705473041799,-1170.93,0.00022054,2]
[311853586,1705473041808,-500.0,0.00022054,2]
[311853587,1705473041817,-500.0,0.00022054,2]
[311853588,1705473041827,-500.0,0.00022054,2]
[311853589,1705473041836,-502.57805441,0.00022054,2]
[311853590,1705473041846,-500.0,0.00022054,2]
[311853591,1705473041855,-500.0,0.00022054,2]
[311853592,1705473041865,-500.0,0.00022054,2]
[311853593,1705473041875,-500.0,0.00022054,2]
[311853594,1705473041884,-500.0,0.00022054,2]
[311853595,1705473041894,-535.01729986,0.00022054,2]
[311853596,1705473041904,-500.0,0.00022054,2]
[311853597,1705473041913,-1095.08,0.00022054,2]
[311853598,1705473041922,-795.62,0.00022054,2]
[311853599,1705473041932,-555.33,0.00022054,2]
[311853600,1705473041941,-500.0,0.00022054,2]
[311853601,1705473041951,-500.0,0.00022054,2]
[311853602,1705473041960,-500.0,0.00022054,2]
[311853603,1705473041968,-500.0,0.00022054,2]
[311853604,1705473041979,-1029.01,0.00022054,2]
[311853605,1705473041988,-580.42,0.00022054,2]
[311853606,1705473042000,-500.0,0.00022054,2]
[311853607,1705473042010,-500.0,0.00022054,2]
[311853608,1705473042019,-500.0,0.00022054,2]
[311853609,1705473042029,-500.0,0.00022054,2]
[311853610,1705473042038,-500.0,0.00022054,2]
[311853611,1705473042048,-500.0,0.00022054,2]
[311853612,1705473042057,-1000.0,0.00022054,2]
[311853613,1705473042066,-500.0,0.00022054,2]
[311853614,1705473042076,-500.0,0.00022054,2]
[311853615,1705473042085,-500.0,0.00022054,2]
[311853616,1705473042095,-500.0,0.00022054,2]
[311853617,1705473042105,-500.96646124,0.00022054,2]
[311853618,1705473042115,-1653.14,0.00022054,2]
[311853619,1705473042124,-500.0,0.00022054,2]
[311853620,1705473042133,-500.0,0.00022054,2]
[311853621,1705473042143,-500.0,0.00022054,2]
[311853622,1705473042153,-500.0,0.00022054,2]
[311853623,1705473042163,-500.0,0.00022054,2]
[311853624,1705473042172,-500.0,0.00022054,2]
[311853625,1705473042183,-500.0,0.00022054,2]
[311853626,1705473042195,-500.0,0.00022054,2]
[311853627,1705473042205,-500.0,0.00022054,2]
[311853628,1705473042214,-500.0,0.00022054,2]
[311853629,1705473042224,-500.0,0.00022054,2]
[311853630,1705473042237,-865.7,0.00022054,2]
[311853631,1705473042247,-997.65,0.00022054,2]
[311853632,1705473042256,-500.0,0.00022054,2]
[311853633,1705473042265,-500.0,0.00022054,2]
[311853634,1705473042275,-500.0,0.00022054,2]
[311853635,1705473042287,-493.1083161,0.00022054,2]
[311853636,1705473042296,-500.0,0.00022054,2]
[311853637,1705473042306,-500.0,0.00022054,2]
[311853638,1705473042315,-500.0,0.00022054,2]
[311853639,1705473042325,-500.0,0.00022054,2]
[311853640,1705473042334,-500.0,0.00022054,2]
[311853641,1705473042343,-1942.51,0.00022054,2]
[311853642,1705473042353,-500.0,0.00022054,2]
[311853643,1705473042363,-576.38807927,0.00022054,2]
[311853644,1705473042373,-647.08,0.00022054,2]
[311853645,1705473042382,-500.0,0.00022054,2]
[311853646,1705473042392,-500.0,0.00022054,2]
[311853647,1705473042401,-500.0,0.00022054,2]
[311853649,1705473042410,-500.0,0.00022054,2]
[311853651,1705473042420,-1371.58,0.00022054,2]
[311853653,1705473042430,-500.0,0.00022054,2]
[311853655,1705473042439,-732.62,0.00022054,2]
[311853657,1705473042449,-706.63,0.00022054,2]
[311853659,1705473042458,-615.77,0.00022054,2]
[311853661,1705473042468,-1111.59,0.00022054,2]
[311853662,1705473042478,-500.0,0.00022054,2]
[311853663,1705473042487,-500.0,0.00022054,2]
[311853664,1705473042496,-500.0,0.00022054,2]
[311853665,1705473042505,-563.69,0.00022054,2]
[311853666,1705473042515,-500.0,0.00022054,2]
[311853667,1705473042524,-500.0,0.00022054,2]
[311853668,1705473042533,-509.58387013,0.00022054,2]
[311853669,1705473042542,-518.39614064,0.00022054,2]
[311853670,1705473042551,-500.0,0.00022054,2]
[311853671,1705473042561,-500.0,0.00022054,2]
[311853672,1705473042571,-500.0,0.00022054,2]
[311853673,1705473042580,-500.0,0.00022054,2]
[311853674,1705473042589,-500.0,0.00022054,2]
[311853675,1705473042598,-500.0,0.00022054,2]
[311853676,1705473042607,-500.0,0.00022054,2]
[311853677,1705473042617,-500.0,0.00022054,2]
[311853678,1705473042625,-500.0,0.00022054,2]
[311853679,1705473042634,-1578.53,0.00022054,2]
[311853680,1705473042643,-214.55184681,0.00022054,2]
[311853681,1705473042652,-500.0,0.00022054,2]
[311853682,1705473042661,-500.0,0.00022054,2]
[311853683,1705473042670,-501.36010961,0.00022054,2]
[311853684,1705473042679,-500.0,0.00022054,2]
[311853685,1705473042688,-500.0,0.00022054,2]
[311853686,1705473042697,-500.0,0.00022054,2]
[311853687,1705473042706,-475.86267501,0.00022054,2]
[311853688,1705473042715,-500.0,0.00022054,2]
[311853689,1705473042725,-500.0,0.00022054,2]
[311853690,1705473042735,-500.0,0.00022054,2]
[311853691,1705473042744,-500.0,0.00022054,2]
[311853692,1705473042754,-500.0,0.00022054,2]
[311853693,1705473042763,-678.77,0.00022054,2]
[311853694,1705473042772,-500.0,0.00022054,2]
[311853695,1705473042782,-500.0,0.00022054,2]
[311853696,1705473042791,-500.0,0.00022054,2]
[311853697,1705473042800,-3458.05,0.00022054,2]
[311853698,1705473042810,-500.0,0.00022054,2]
[311853699,1705473042819,-3263.44,0.00022054,2]
[311853700,1705473042828,-1850.79,0.00022054,2]
[311853701,1705473042837,-501.62550056,0.00022054,2]
[311853704,1705473042902,-500.0,0.00022054,2]
[311853705,1705473042911,-500.0,0.00022054,2]
[311853706,1705473042921,-524.79,0.00022054,2]
[311853707,1705473042931,-500.0,0.00022054,2]
[311853708,1705473042940,-500.0,0.00022054,2]
[311853709,1705473042949,-500.0,0.00022054,2]
[311853710,1705473042959,-501.27,0.00022054,2]
[311853711,1705473042968,-4580.02,0.00022054,2]
[311853712,1705473042978,-500.0,0.00022054,2]
[311853713,1705473042987,-500.0,0.00022054,2]
[311853714,1705473042996,-500.0,0.00022054,2]
[311853715,1705473043005,-921.94,0.00022054,2]
[311853716,1705473043015,-18556.37,0.00022054,2]
[311853717,1705473043024,-500.0,0.00022054,2]
[311853718,1705473043033,-500.0,0.00022054,2]
[311853719,1705473043043,-500.0,0.00022054,2]
[311853720,1705473043052,-980.64,0.00022054,2]
[311853721,1705473043061,-1151.16,0.00022054,2]
[311853722,1705473043070,-500.0,0.00022054,2]
[311853723,1705473043079,-10118.6,0.00022054,2]
[311853724,1705473043089,-500.0,0.00022054,2]
[311853725,1705473043098,-2440.75,0.00022054,2]
[311853726,1705473043107,-500.0,0.00022054,2]
[311853727,1705473043117,-500.0,0.00022054,2]
[311853728,1705473043126,-500.0,0.00022054,2]
[311853729,1705473043135,-500.0,0.00022054,2]
[311853730,1705473043145,-500.0,0.00022054,2]
[311853731,1705473043154,-500.0,0.00022054,2]
[311853732,1705473043164,-3959.88,0.00022054,2]
[311853733,1705473043173,-500.0,0.00022054,2]
[311853734,1705473043182,-500.0,0.00022054,2]
[311853735,1705473043191,-1454.61,0.00022054,2]
[311853736,1705473043201,-591.03574394,0.00022054,2]
[311853737,1705473043210,-506.24672197,0.00022054,2]
[311853738,1705473043219,-500.0,0.00022054,2]
[311853739,1705473043229,-1647.0,0.00022054,2]
[311853740,1705473043238,-500.0,0.00022054,2]
[311853741,1705473043247,-500.0,0.00022054,2]
[311853742,1705473043256,-500.0,0.00022054,2]
[311853743,1705473043266,-1041.43,0.00022054,2]
[311853744,1705473043278,-3434.65,0.00022054,2]
[311853745,1705473043287,-2052.68,0.00022054,2]
[311853746,1705473043297,-629.84713767,0.00022054,2]
[311853747,1705473043307,-4657.39,0.00022054,2]
[311853748,1705473043317,-500.0,0.00022054,5]
[311853749,1705473043328,-500.0,0.00022054,2]
[311853750,1705473043338,-1123.51,0.00022054,2]
[311853751,1705473043347,-500.0,0.00022054,2]
[311853752,1705473043358,-508.66142748,0.00022054,2]
[311853753,1705473043367,-917.15,0.00022054,2]
[311853754,1705473043376,-174.74456145,0.00022054,2]
[311853755,1705473043385,-500.0,0.00022054,2]
[311853756,1705473043394,-500.0,0.00022054,2]
[311853757,1705473043403,-380.81535745,0.00022054,2]
[311853758,1705473043412,-578.07,0.00022054,2]
[311853759,1705473043421,-500.0,0.00022054,2]
[311853760,1705473043431,-500.0,0.00022054,2]
[311853761,1705473043440,-1676.44,0.00022054,2]
[311853762,1705473043449,-619.47,0.00022054,2]
[311853763,1705473043459,-698.49,0.00022054,2]
[311853764,1705473043468,-500.0,0.00022054,2]
[311853765,1705473043477,-2072.28,0.00022054,2]
[311853766,1705473043486,-592.38,0.00022054,2]
[311853767,1705473043494,-500.0,0.00022054,2]
[311853768,1705473043503,-2266.9,0.00022054,2]
[311853769,1705473043512,-9177.6,0.00022054,2]
[311853770,1705473043520,-500.0,0.00022054,2]
[311853771,1705473043529,-500.0,0.00022054,2]
[311853772,1705473043538,-1254.05,0.00022054,2]
[311853773,1705473043547,-500.0,0.00022054,2]
[311853774,1705473043555,-11512.07,0.00022054,2]
[311853775,1705473043564,-20281.26,0.00022054,2]
[311853776,1705473043573,-500.86771326,0.00022054,2]
[311853777,1705473043581,-502.19864855,0.00022054,2]
[311853778,1705473043590,-500.0,0.00022054,2]
[311853779,1705473043598,-500.0,0.00022054,2]
[311853780,1705473043607,-500.0,0.00022191,2]
[311853781,1705473043616,-164.71281458,0.00022191,2]
[311853782,1705473043625,-500.0,0.00022191,2]
[311853783,1705473043634,-500.0,0.00022191,2]
[311853784,1705473043644,-500.0,0.00022191,2]
[311853785,1705473043653,-500.0,0.00022191,2]
[311853786,1705473043662,-500.0,0.00022191,2]
[311853787,1705473043671,-500.0,0.00022191,2]
[311853788,1705473043680,-388.70818294,0.00022191,2]
[311853789,1705473043689,-596.62,0.00022191,2]
[311853790,1705473043698,-500.0,0.00022191,2]
[311853791,1705473043708,-500.0,0.00022191,2]
[311853792,1705473043718,-2062.11,0.00022191,2]
[311853793,1705473043727,-500.0,0.00022191,2]
[311853794,1705473043738,-500.0,0.00022191,2]
[311853795,1705473043747,-624.52,0.00022191,2]
[311853796,1705473043757,-429.95876673,0.00022191,2]
[311853797,1705473043766,-500.0,0.00022191,2]
[311853798,1705473043775,-540.7180897,0.00022191,2]
[311853799,1705473043784,-500.0,0.00022191,2]
[311853800,1705473043794,-488.04280479,0.00022191,2]
[311853801,1705473043803,-500.0,0.00022191,2]
[311853802,1705473043813,-500.0,0.00022191,2]
[311853803,1705473043823,-500.0,0.00022191,2]
[311853804,1705473043833,-500.0,0.00022191,2]
[311853805,1705473043842,-500.0,0.00022191,2]
[311853806,1705473043852,-500.0,0.00022191,2]
[311853807,1705473043861,-500.0,0.00022191,2]
[311853808,1705473043927,-500.0,0.00022191,2]
[311853809,1705473043936,-500.0,0.00022191,2]
[311853810,1705473043946,-1170.93,0.00022191,2]
[311853811,1705473043955,-500.0,0.00022191,2]
[311853812,1705473043964,-500.0,0.00022191,2]
[311853813,1705473043973,-500.0,0.00022191,2]
[311853814,1705473043983,-500.0,0.00022191,2]
[311853815,1705473043992,-500.0,0.00022191,2]
[311853816,1705473044001,-500.0,0.00022191,2]
[311853817,1705473044011,-500.0,0.00022191,2]
[311853818,1705473044021,-500.0,0.00022191,2]
[311853819,1705473044030,-500.0,0.00022191,2]
[311853820,1705473044039,-1095.08,0.00022191,2]
[311853821,1705473044048,-795.62,0.00022191,2]
[311853822,1705473044058,-555.33,0.00022191,2]
[311853823,1705473044067,-357.88867272,0.00022191,2]
[311853824,1705473044076,-500.0,0.00022191,2]
[311853825,1705473044086,-500.0,0.00022191,2]
[311853826,1705473044095,-500.0,0.00022191,2]
[311853827,1705473044104,-1029.01,0.00022191,2]
[311853828,1705473044116,-580.42,0.00022191,2]
[311853829,1705473044126,-500.0,0.00022191,2]
[311853830,1705473044135,-500.0,0.00022191,2]
[311853831,1705473044145,-500.0,0.00022191,2]
[311853832,1705473044154,-500.0,0.00022191,2]
[311853833,1705473044164,-500.0,0.00022191,2]
[311853834,1705473044173,-490.57231035,0.00022191,2]
[311853835,1705473044183,-1006.77139526,0.00022191,2]
[311853836,1705473044192,-500.0,0.00022191,2]